[Event "Early-Titled-Tuesday-Blitz-January-30-2024"]
[Site "Chess.com"]
[Date "2024.01.30"]
[Round "7"]
[White "ChessSwole"]
[Black "Talent-OF-Slovenia"]
[Result "0-1"]
[WhiteElo "2610"]
[BlackElo "2484"]
[TimeControl "180+1"]
[EndTime "9:18:32 PST"]
[Termination "Talent-OF-Slovenia won by resignation"]

1. e4 {[%clk 0:03:00.9]} 1... c5 {[%clk 0:02:57.2]} 2. Nf3 {[%clk 0:02:59.9]}
2... e6 {[%clk 0:02:56.3]} 3. c3 {[%clk 0:02:57.8]} 3... d5 {[%clk 0:02:51.3]}
4. exd5 {[%clk 0:02:58.7]} 4... Qxd5 {[%clk 0:02:51.9]} 5. d4 {[%clk 0:02:58.8]}
5... Nc6 {[%clk 0:02:51.6]} 6. Na3 {[%clk 0:02:56.6]} 6... Nf6 {[%clk
0:02:50.1]} 7. Nb5 {[%clk 0:02:54.5]} 7... Qd7 {[%clk 0:02:49.8]} 8. Qa4 {[%clk
0:02:48.1]} 8... cxd4 {[%clk 0:02:44.6]} 9. Nbxd4 {[%clk 0:02:29.4]} 9... Nxd4
{[%clk 0:02:43.9]} 10. Qxd4 {[%clk 0:02:25.7]} 10... Qxd4 {[%clk 0:02:43.5]} 11.
Nxd4 {[%clk 0:02:26.6]} 11... Bd7 {[%clk 0:02:43.5]} 12. Be2 {[%clk 0:02:21]}
12... Be7 {[%clk 0:02:40.5]} 13. Bf3 {[%clk 0:02:19]} 13... e5 {[%clk
0:02:36.3]} 14. Nb3 {[%clk 0:02:10.5]} 14... Rb8 {[%clk 0:02:29.9]} 15. Be3
{[%clk 0:02:09.8]} 15... b6 {[%clk 0:02:25.5]} 16. O-O-O {[%clk 0:02:08.6]}
16... O-O {[%clk 0:02:24.9]} 17. h3 {[%clk 0:02:06.2]} 17... Be6 {[%clk
0:02:08]} 18. g4 {[%clk 0:01:45.5]} 18... Rfd8 {[%clk 0:02:05.8]} 19. Kc2 {[%clk
0:01:38.2]} 19... Nd5 {[%clk 0:02:01.9]} 20. Bc1 {[%clk 0:01:31.3]} 20... a5
{[%clk 0:01:59.3]} 21. a4 {[%clk 0:01:24.4]} 21... Nb4+ {[%clk 0:01:51]} 22.
cxb4 {[%clk 0:01:19]} 22... Rdc8+ {[%clk 0:01:48.9]} 23. Kb1 {[%clk 0:01:13.8]}
23... Bxb3 {[%clk 0:01:47.9]} 24. Rd7 {[%clk 0:00:57.1]} 24... Bxb4 {[%clk
0:01:42.1]} 25. Bd1 {[%clk 0:00:51.7]} 25... Be6 {[%clk 0:01:33.4]} 26. Rd3
{[%clk 0:00:46.5]} 26... f6 {[%clk 0:01:30.1]} 27. Bf3 {[%clk 0:00:42.1]} 27...
Bc4 {[%clk 0:01:23.4]} 28. Rd7 {[%clk 0:00:39.6]} 28... Bb3 {[%clk 0:01:17]} 29.
Bd1 {[%clk 0:00:33.7]} 29... Bf7 {[%clk 0:01:09.2]} 30. Bc2 {[%clk 0:00:29.5]}
30... Be6 {[%clk 0:00:59.6]} 31. Ra7 {[%clk 0:00:24.9]} 31... Ra8 {[%clk
0:00:56]} 32. Rb7 {[%clk 0:00:23.6]} 32... Bd5 {[%clk 0:00:47.1]} 33. Rxb6
{[%clk 0:00:11.2]} 33... Bxh1 {[%clk 0:00:46.6]} 34. Rb5 {[%clk 0:00:10.1]}
34... Bc6 {[%clk 0:00:42.3]} 35. Rb6 {[%clk 0:00:09.5]} 35... Bc5 {[%clk
0:00:41.9]} 36. Rb3 {[%clk 0:00:08.8]} 36... Bxa4 {[%clk 0:00:42]} 0-1

[Event "Early-Titled-Tuesday-Blitz-January-30-2024"]
[Site "Chess.com"]
[Date "2024.01.30"]
[Round "7"]
[White "CristianS27"]
[Black "Mops_2004"]
[Result "0-1"]
[WhiteElo "2561"]
[BlackElo "2763"]
[TimeControl "180+1"]
[EndTime "9:18:34 PST"]
[Termination "Mops_2004 won by resignation"]

1. e4 {[%clk 0:02:51.2]} 1... g6 {[%clk 0:02:59.8]} 2. d4 {[%clk 0:02:50.4]}
2... Bg7 {[%clk 0:02:59.8]} 3. Nc3 {[%clk 0:02:50.2]} 3... d6 {[%clk 0:03:00.4]}
4. Nf3 {[%clk 0:02:49.2]} 4... a6 {[%clk 0:03:00.3]} 5. h3 {[%clk 0:02:48.8]}
5... b5 {[%clk 0:02:56.5]} 6. Bd3 {[%clk 0:02:48.7]} 6... Nd7 {[%clk 0:02:55.3]}
7. Ne2 {[%clk 0:02:48.2]} 7... c5 {[%clk 0:02:49.5]} 8. c3 {[%clk 0:02:48.2]}
8... Bb7 {[%clk 0:02:49.8]} 9. Be3 {[%clk 0:02:45]} 9... Ngf6 {[%clk 0:02:43.6]}
10. Ng3 {[%clk 0:02:45.3]} 10... O-O {[%clk 0:02:42.8]} 11. O-O {[%clk
0:02:45.4]} 11... Qc7 {[%clk 0:02:40.5]} 12. Qd2 {[%clk 0:02:45.3]} 12... Rac8
{[%clk 0:02:21.1]} 13. Bh6 {[%clk 0:02:41.9]} 13... Rfe8 {[%clk 0:02:14.8]} 14.
Rfe1 {[%clk 0:02:27.3]} 14... Bxh6 {[%clk 0:01:59.6]} 15. Qxh6 {[%clk
0:02:26.7]} 15... cxd4 {[%clk 0:01:57.8]} 16. cxd4 {[%clk 0:02:27.6]} 16... e5
{[%clk 0:01:58]} 17. Rac1 {[%clk 0:02:20.3]} 17... Qb6 {[%clk 0:01:45.3]} 18. d5
{[%clk 0:02:15.7]} 18... b4 {[%clk 0:01:09.5]} 19. Nh4 {[%clk 0:02:13.7]} 19...
Rxc1 {[%clk 0:00:57.6]} 20. Rxc1 {[%clk 0:01:29.9]} 20... Kh8 {[%clk 0:00:57.4]}
21. Re1 {[%clk 0:01:06.9]} 21... Ng8 {[%clk 0:00:52.7]} 22. Qd2 {[%clk 0:01:03]}
22... Rc8 {[%clk 0:00:44.3]} 23. Kh2 {[%clk 0:01:02.8]} 23... a5 {[%clk
0:00:42.3]} 24. f4 {[%clk 0:01:01.2]} 24... exf4 {[%clk 0:00:42.5]} 25. Qxf4
{[%clk 0:01:02.1]} 25... Ne5 {[%clk 0:00:42.6]} 26. Bb1 {[%clk 0:00:52.5]} 26...
Qd4 {[%clk 0:00:38.3]} 27. Nf3 {[%clk 0:00:29.5]} 27... Qxb2 {[%clk 0:00:38]}
28. Nxe5 {[%clk 0:00:27.3]} 28... Qxe5 {[%clk 0:00:35.7]} 29. Qxf7 {[%clk
0:00:27.5]} 29... Rc3 {[%clk 0:00:35.6]} 30. Qf2 {[%clk 0:00:20.2]} 30... h5
{[%clk 0:00:28.4]} 31. h4 {[%clk 0:00:18.6]} 31... Nf6 {[%clk 0:00:29.1]} 32.
Kh3 {[%clk 0:00:15.9]} 32... Bc8+ {[%clk 0:00:28.6]} 0-1

[Event "Early-Titled-Tuesday-Blitz-January-30-2024"]
[Site "Chess.com"]
[Date "2024.01.30"]
[Round "7"]
[White "maximnovik"]
[Black "sofaceindisguise"]
[Result "1-0"]
[WhiteElo "2616"]
[BlackElo "2770"]
[TimeControl "180+1"]
[EndTime "9:18:35 PST"]
[Termination "maximnovik won by resignation"]

1. e4 {[%clk 0:03:00.9]} 1... c5 {[%clk 0:02:58.9]} 2. Nf3 {[%clk 0:03:00.3]}
2... e6 {[%clk 0:02:59.5]} 3. c3 {[%clk 0:02:59.8]} 3... Nf6 {[%clk 0:02:58.8]}
4. e5 {[%clk 0:02:59.9]} 4... Nd5 {[%clk 0:02:59.4]} 5. d4 {[%clk 0:03:00.4]}
5... cxd4 {[%clk 0:02:59.9]} 6. cxd4 {[%clk 0:03:00.6]} 6... b6 {[%clk
0:03:00.6]} 7. Nc3 {[%clk 0:02:59.9]} 7... Bb7 {[%clk 0:03:01]} 8. Bd3 {[%clk
0:02:54.9]} 8... Be7 {[%clk 0:03:00.6]} 9. O-O {[%clk 0:02:54.2]} 9... Na6
{[%clk 0:02:49.8]} 10. Re1 {[%clk 0:02:51.7]} 10... Nac7 {[%clk 0:02:47.3]} 11.
Ne4 {[%clk 0:02:50]} 11... f5 {[%clk 0:02:38.1]} 12. Nd6+ {[%clk 0:02:41.2]}
12... Bxd6 {[%clk 0:02:34]} 13. exd6 {[%clk 0:02:41]} 13... Na6 {[%clk
0:02:31.8]} 14. Bxf5 {[%clk 0:02:36.7]} 14... O-O {[%clk 0:02:32.2]} 15. Be4
{[%clk 0:02:29.2]} 15... Qb8 {[%clk 0:02:23.6]} 16. Ng5 {[%clk 0:01:55]} 16...
h6 {[%clk 0:02:21.1]} 17. Nh7 {[%clk 0:01:31.6]} 17... Rf7 {[%clk 0:02:21]} 18.
Qg4 {[%clk 0:01:26.6]} 18... Nf6 {[%clk 0:02:10.9]} 19. Nxf6+ {[%clk 0:01:20]}
19... Rxf6 {[%clk 0:02:11.8]} 20. Bf4 {[%clk 0:01:10.5]} 20... Bxe4 {[%clk
0:02:11.1]} 21. Rxe4 {[%clk 0:01:09.2]} 21... Qb7 {[%clk 0:02:10.4]} 22. Be5
{[%clk 0:01:07.9]} 22... Rf7 {[%clk 0:02:09.5]} 23. Qg6 {[%clk 0:01:06.5]} 23...
Qc8 {[%clk 0:01:57.2]} 24. Rh4 {[%clk 0:01:01.9]} 24... Qf8 {[%clk 0:01:57.6]}
25. Rxh6 {[%clk 0:00:59.1]} 25... Rf5 {[%clk 0:01:45.8]} 26. Rh7 {[%clk
0:00:51.3]} 26... Rxe5 {[%clk 0:01:43.8]} 27. dxe5 {[%clk 0:00:49.6]} 27... Qf7
{[%clk 0:01:25.5]} 28. Qxf7+ {[%clk 0:00:49.4]} 28... Kxf7 {[%clk 0:01:26.4]}
29. Rc1 {[%clk 0:00:49.4]} 29... Nc5 {[%clk 0:01:26.4]} 30. b4 {[%clk
0:00:48.6]} 30... Nd3 {[%clk 0:01:26.9]} 31. Rc7 {[%clk 0:00:45.2]} 31... Nxe5
{[%clk 0:01:27.6]} 32. f4 {[%clk 0:00:45.1]} 32... Kg6 {[%clk 0:01:25.4]} 33.
Rh4 {[%clk 0:00:43.8]} 33... Nf7 {[%clk 0:01:19.6]} 34. Rxd7 {[%clk 0:00:42.1]}
34... a5 {[%clk 0:01:16.7]} 35. b5 {[%clk 0:00:41.5]} 35... Rc8 {[%clk
0:01:16.3]} 36. Rc7 {[%clk 0:00:41.4]} 36... Rd8 {[%clk 0:01:16.8]} 37. d7
{[%clk 0:00:41.5]} 37... Nd6 {[%clk 0:01:17.6]} 38. a4 {[%clk 0:00:37.6]} 38...
Nf5 {[%clk 0:01:15.8]} 39. Rh3 {[%clk 0:00:36.4]} 39... Ne7 {[%clk 0:01:15.7]}
40. Rd3 {[%clk 0:00:34.3]} 40... Nd5 {[%clk 0:01:16]} 41. Rb7 {[%clk 0:00:33.2]}
41... Kf6 {[%clk 0:01:16.6]} 42. g3 {[%clk 0:00:33.2]} 42... Ke7 {[%clk
0:01:16.9]} 43. Kg2 {[%clk 0:00:32.4]} 43... Kd6 {[%clk 0:01:16.7]} 44. Kf3
{[%clk 0:00:31.7]} 44... Kc5 {[%clk 0:01:17]} 45. Re3 {[%clk 0:00:27.9]} 45...
Kd6 {[%clk 0:01:13.5]} 46. Re5 {[%clk 0:00:26.5]} 46... g6 {[%clk 0:01:13.6]}
47. Rg5 {[%clk 0:00:26.6]} 47... Nc3 {[%clk 0:01:09.6]} 48. Rxb6+ {[%clk
0:00:23.9]} 48... Kc7 {[%clk 0:01:09.5]} 49. Ra6 {[%clk 0:00:21.7]} 49... Nxa4
{[%clk 0:01:09.5]} 50. Rxg6 {[%clk 0:00:20.8]} 50... Nc5 {[%clk 0:01:09.6]} 51.
Rc6+ {[%clk 0:00:20.6]} 1-0

[Event "Early-Titled-Tuesday-Blitz-January-30-2024"]
[Site "Chess.com"]
[Date "2024.01.30"]
[Round "7"]
[White "UK_23"]
[Black "Yushko_Olga"]
[Result "1-0"]
[WhiteElo "2401"]
[BlackElo "2167"]
[TimeControl "180+1"]
[EndTime "9:18:37 PST"]
[Termination "UK_23 won by resignation"]

1. e4 {[%clk 0:03:00.9]} 1... g6 {[%clk 0:02:58.9]} 2. d4 {[%clk 0:03:00.6]}
2... Bg7 {[%clk 0:02:59.6]} 3. c3 {[%clk 0:03:01.2]} 3... d6 {[%clk 0:03:00]} 4.
Nf3 {[%clk 0:03:01.7]} 4... Nf6 {[%clk 0:03:00.6]} 5. Bd3 {[%clk 0:03:01.9]}
5... c6 {[%clk 0:03:00.6]} 6. O-O {[%clk 0:03:02]} 6... Qc7 {[%clk 0:03:00.4]}
7. Re1 {[%clk 0:03:01.5]} 7... e5 {[%clk 0:03:00]} 8. dxe5 {[%clk 0:02:59.3]}
8... dxe5 {[%clk 0:03:00.9]} 9. Bg5 {[%clk 0:02:59.4]} 9... Nbd7 {[%clk
0:02:58.7]} 10. Nbd2 {[%clk 0:02:59.4]} 10... O-O {[%clk 0:02:58.5]} 11. Qc2
{[%clk 0:02:59.4]} 11... Nc5 {[%clk 0:02:47.7]} 12. Bf1 {[%clk 0:02:57.8]} 12...
Ne6 {[%clk 0:02:46]} 13. Bxf6 {[%clk 0:02:56.4]} 13... Bxf6 {[%clk 0:02:46.2]}
14. a4 {[%clk 0:02:55.8]} 14... Bd7 {[%clk 0:02:41]} 15. Nc4 {[%clk 0:02:52.8]}
15... Rad8 {[%clk 0:02:36.7]} 16. Rad1 {[%clk 0:02:52.3]} 16... Bc8 {[%clk
0:02:36.4]} 17. Ne3 {[%clk 0:02:51.1]} 17... Bg7 {[%clk 0:02:35]} 18. b4 {[%clk
0:02:47.3]} 18... a5 {[%clk 0:02:19.1]} 19. Bc4 {[%clk 0:02:43.7]} 19... axb4
{[%clk 0:02:13.9]} 20. cxb4 {[%clk 0:02:43.6]} 20... Nd4 {[%clk 0:02:13.4]} 21.
Qa2 {[%clk 0:02:36.2]} 21... Nxf3+ {[%clk 0:02:11.6]} 22. gxf3 {[%clk
0:02:37.1]} 22... Bh3 {[%clk 0:02:07.7]} 23. a5 {[%clk 0:02:31.1]} 23... Qe7
{[%clk 0:02:07]} 24. Qb3 {[%clk 0:02:22]} 24... Bh6 {[%clk 0:02:04.7]} 25. Bf1
{[%clk 0:02:14.5]} 25... Be6 {[%clk 0:01:52.7]} 26. Bc4 {[%clk 0:02:06.5]} 26...
Bh3 {[%clk 0:01:35.8]} 27. Bf1 {[%clk 0:02:05.7]} 27... Be6 {[%clk 0:01:35.2]}
28. Qc3 {[%clk 0:02:04.1]} 28... Qg5+ {[%clk 0:01:29.7]} 29. Kh1 {[%clk
0:02:02.9]} 29... Qh5 {[%clk 0:01:27]} 30. Ng2 {[%clk 0:01:57.3]} 30... Bh3
{[%clk 0:01:21.4]} 31. b5 {[%clk 0:01:39.5]} 31... cxb5 {[%clk 0:01:13.7]} 32.
Rd5 {[%clk 0:01:39.6]} 32... f6 {[%clk 0:00:52.3]} 33. Red1 {[%clk 0:01:31.4]}
33... Rc8 {[%clk 0:00:52.2]} 34. Qb3 {[%clk 0:01:27.1]} 34... Be6 {[%clk
0:00:50.5]} 35. Bxb5 {[%clk 0:01:14.3]} 35... Bxd5 {[%clk 0:00:50]} 36. exd5
{[%clk 0:01:14.9]} 36... Rc5 {[%clk 0:00:40]} 37. d6+ {[%clk 0:01:14.4]} 37...
Kh8 {[%clk 0:00:22.8]} 38. d7 {[%clk 0:01:14.5]} 38... Rd8 {[%clk 0:00:20.8]}
39. Qe6 {[%clk 0:01:14.6]} 39... g5 {[%clk 0:00:16.5]} 40. Qxf6+ {[%clk
0:01:13.2]} 40... Kg8 {[%clk 0:00:14.4]} 41. Qxd8+ {[%clk 0:01:13]} 41... Kg7
{[%clk 0:00:15]} 42. Qe7+ {[%clk 0:01:12.7]} 42... Kg6 {[%clk 0:00:14]} 43. Bd3+
{[%clk 0:01:10.2]} 43... e4 {[%clk 0:00:13.5]} 44. Bxe4+ {[%clk 0:01:10.8]}
44... Rf5 {[%clk 0:00:12.1]} 45. Bxf5+ {[%clk 0:01:10.7]} 45... Kxf5 {[%clk
0:00:13]} 46. Qe4+ {[%clk 0:01:10.8]} 1-0

[Event "Early-Titled-Tuesday-Blitz-January-30-2024"]
[Site "Chess.com"]
[Date "2024.01.30"]
[Round "7"]
[White "PedroGil25"]
[Black "bazar-wokzal"]
[Result "0-1"]
[WhiteElo "2421"]
[BlackElo "2602"]
[TimeControl "180+1"]
[EndTime "9:18:38 PST"]
[Termination "bazar-wokzal won by resignation"]

1. e4 {[%clk 0:03:00.9]} 1... Nc6 {[%clk 0:02:58.2]} 2. d4 {[%clk 0:02:59.6]}
2... d5 {[%clk 0:02:58.1]} 3. e5 {[%clk 0:02:59.7]} 3... h5 {[%clk 0:02:58.1]}
4. Nf3 {[%clk 0:02:57.2]} 4... Bg4 {[%clk 0:02:58.2]} 5. Bb5 {[%clk 0:02:55.8]}
5... e6 {[%clk 0:02:55.4]} 6. h3 {[%clk 0:02:55.5]} 6... Bxf3 {[%clk 0:02:54.8]}
7. Qxf3 {[%clk 0:02:56.4]} 7... a6 {[%clk 0:02:55]} 8. Bxc6+ {[%clk 0:02:56.2]}
8... bxc6 {[%clk 0:02:55.9]} 9. Nd2 {[%clk 0:02:56.5]} 9... c5 {[%clk
0:02:55.9]} 10. dxc5 {[%clk 0:02:56.3]} 10... Bxc5 {[%clk 0:02:55.4]} 11. Nb3
{[%clk 0:02:57.2]} 11... Bb6 {[%clk 0:02:54.7]} 12. Qg3 {[%clk 0:02:55.8]} 12...
Kf8 {[%clk 0:02:49.8]} 13. Be3 {[%clk 0:02:50.7]} 13... h4 {[%clk 0:02:42.8]}
14. Qf3 {[%clk 0:02:50.2]} 14... Bxe3 {[%clk 0:02:34]} 15. Qxe3 {[%clk
0:02:51.1]} 15... Ne7 {[%clk 0:02:34]} 16. O-O-O {[%clk 0:02:43.5]} 16... a5
{[%clk 0:02:26]} 17. Qc5 {[%clk 0:02:42.9]} 17... a4 {[%clk 0:02:24.1]} 18. Nd4
{[%clk 0:02:41.8]} 18... Kg8 {[%clk 0:02:22.5]} 19. a3 {[%clk 0:02:40.8]} 19...
Rh5 {[%clk 0:02:14.3]} 20. f4 {[%clk 0:02:37.8]} 20... Nf5 {[%clk 0:02:09.9]}
21. Rhf1 {[%clk 0:02:33.2]} 21... Qd7 {[%clk 0:02:04.1]} 22. Rf3 {[%clk
0:02:28.5]} 22... Rb8 {[%clk 0:01:53.6]} 23. Rc3 {[%clk 0:02:28.1]} 23... Rb7
{[%clk 0:01:41.7]} 24. Kb1 {[%clk 0:02:23.5]} 24... Ng3 {[%clk 0:01:38]} 25. Qc6
{[%clk 0:02:19.7]} 25... Qxc6 {[%clk 0:01:36.9]} 26. Rxc6 {[%clk 0:02:18.1]}
26... g5 {[%clk 0:01:19.9]} 27. f5 {[%clk 0:02:11.4]} 27... exf5 {[%clk
0:01:15]} 28. e6 {[%clk 0:02:10.6]} 28... fxe6 {[%clk 0:01:14.4]} 29. Rxe6
{[%clk 0:02:11.5]} 29... c5 {[%clk 0:01:12.5]} 30. Nc6 {[%clk 0:02:07.8]} 30...
d4 {[%clk 0:01:07.9]} 31. Rde1 {[%clk 0:02:07.2]} 31... g4 {[%clk 0:01:02]} 32.
hxg4 {[%clk 0:01:59.4]} 32... fxg4 {[%clk 0:01:01.7]} 33. Rg6+ {[%clk
0:01:59.7]} 33... Rg7 {[%clk 0:01:01.2]} 34. Ne7+ {[%clk 0:01:22.3]} 34... Kh7
{[%clk 0:00:53.3]} 35. Rxg7+ {[%clk 0:01:03.4]} 35... Kxg7 {[%clk 0:00:54.2]}
36. Nc6 {[%clk 0:00:56.6]} 36... h3 {[%clk 0:00:49.8]} 37. gxh3 {[%clk
0:00:56.6]} 37... gxh3 {[%clk 0:00:50]} 38. Rg1 {[%clk 0:00:48.6]} 38... h2
{[%clk 0:00:49.5]} 39. Rxg3+ {[%clk 0:00:47.9]} 39... Kf6 {[%clk 0:00:49.9]} 40.
Rf3+ {[%clk 0:00:47.4]} 40... Ke6 {[%clk 0:00:48.7]} 41. Rf1 {[%clk 0:00:48]}
41... h1=Q {[%clk 0:00:47.9]} 42. Rxh1 {[%clk 0:00:48.5]} 42... Rxh1+ {[%clk
0:00:47.8]} 43. Ka2 {[%clk 0:00:49.4]} 43... Rh7 {[%clk 0:00:44.9]} 44. b3
{[%clk 0:00:45.7]} 44... Kd5 {[%clk 0:00:44.3]} 45. Na5 {[%clk 0:00:43.8]} 45...
axb3+ {[%clk 0:00:39.6]} 46. Kxb3 {[%clk 0:00:44.7]} 46... c4+ {[%clk
0:00:36.3]} 47. Kb2 {[%clk 0:00:44.7]} 47... Ra7 {[%clk 0:00:33.5]} 0-1

[Event "Early-Titled-Tuesday-Blitz-January-30-2024"]
[Site "Chess.com"]
[Date "2024.01.30"]
[Round "7"]
[White "Lion-Al-Messi"]
[Black "GrotBchess"]
[Result "1-0"]
[WhiteElo "2563"]
[BlackElo "2318"]
[TimeControl "180+1"]
[EndTime "9:18:38 PST"]
[Termination "Lion-Al-Messi won on time"]

1. e4 {[%clk 0:03:00.9]} 1... c5 {[%clk 0:02:59.3]} 2. Nf3 {[%clk 0:03:01.2]}
2... e6 {[%clk 0:02:59.4]} 3. d4 {[%clk 0:03:01.7]} 3... cxd4 {[%clk 0:02:59.7]}
4. Nxd4 {[%clk 0:03:02.6]} 4... Nc6 {[%clk 0:02:59.7]} 5. Nc3 {[%clk 0:03:02.7]}
5... Qc7 {[%clk 0:02:56.9]} 6. Be3 {[%clk 0:03:02.7]} 6... a6 {[%clk 0:02:55.6]}
7. Qd2 {[%clk 0:03:03.1]} 7... b5 {[%clk 0:02:53]} 8. O-O-O {[%clk 0:03:03.1]}
8... Bb7 {[%clk 0:02:51.6]} 9. f3 {[%clk 0:03:02.4]} 9... Nf6 {[%clk 0:02:47.2]}
10. g4 {[%clk 0:03:02.2]} 10... d6 {[%clk 0:02:47.2]} 11. g5 {[%clk 0:03:02.2]}
11... Nd7 {[%clk 0:02:47.1]} 12. Bh3 {[%clk 0:02:59.1]} 12... Nxd4 {[%clk
0:02:39.1]} 13. Qxd4 {[%clk 0:02:58.4]} 13... Rc8 {[%clk 0:02:38]} 14. Kb1
{[%clk 0:02:53.2]} 14... Ne5 {[%clk 0:02:37.3]} 15. f4 {[%clk 0:02:51.2]} 15...
Nc4 {[%clk 0:02:33.6]} 16. Bc1 {[%clk 0:02:51.8]} 16... b4 {[%clk 0:02:26.8]}
17. Nd5 {[%clk 0:02:49.4]} 17... Na3+ {[%clk 0:01:55.1]} 18. bxa3 {[%clk
0:02:48.9]} 18... Qxc2+ {[%clk 0:01:54.8]} 19. Ka1 {[%clk 0:02:48.8]} 19... Rc4
{[%clk 0:01:52]} 20. Qb6 {[%clk 0:02:37]} 20... Bxd5 {[%clk 0:01:22]} 21. exd5
{[%clk 0:02:36.2]} 21... bxa3 {[%clk 0:01:21.5]} 22. Qb3 {[%clk 0:02:22.8]}
22... Qxb3 {[%clk 0:01:09.4]} 23. axb3 {[%clk 0:02:22.8]} 23... Rc3 {[%clk
0:01:09.3]} 24. Bf1 {[%clk 0:02:18.9]} 24... Rxb3 {[%clk 0:01:06.8]} 25. Bxa6
{[%clk 0:02:17]} 25... g6 {[%clk 0:00:51.3]} 26. dxe6 {[%clk 0:02:17]} 26...
fxe6 {[%clk 0:00:47.7]} 27. Bc4 {[%clk 0:02:15.6]} 27... Rf3 {[%clk 0:00:32.9]}
28. Bxe6 {[%clk 0:02:12.7]} 28... Ke7 {[%clk 0:00:24]} 29. Rhe1 {[%clk 0:02:09]}
29... Bg7+ {[%clk 0:00:23.3]} 30. Ka2 {[%clk 0:02:09.4]} 30... Rf2+ {[%clk
0:00:18.5]} 31. Rd2 {[%clk 0:02:09.9]} 31... Rxd2+ {[%clk 0:00:15.4]} 32. Bxd2
{[%clk 0:02:10.8]} 32... Rb8 {[%clk 0:00:14.6]} 33. Bd5+ {[%clk 0:02:10.6]}
33... Kd7 {[%clk 0:00:14.7]} 34. Be6+ {[%clk 0:02:09.9]} 34... Ke7 {[%clk
0:00:14.4]} 35. Bb3+ {[%clk 0:02:10.2]} 35... Kd7 {[%clk 0:00:13.1]} 36. Ba4+
{[%clk 0:02:10.4]} 36... Kc7 {[%clk 0:00:11.3]} 37. Re7+ {[%clk 0:02:09.8]}
37... Kb6 {[%clk 0:00:11.1]} 38. Rxg7 {[%clk 0:02:06.5]} 38... Kc5 {[%clk
0:00:11.5]} 39. Be3+ {[%clk 0:02:05.7]} 39... Kc4 {[%clk 0:00:10.2]} 40. Rc7+
{[%clk 0:01:51.6]} 40... Kd3 {[%clk 0:00:09.4]} 41. Bc1 {[%clk 0:01:49.1]} 41...
Rf8 {[%clk 0:00:05.3]} 42. Bc2+ {[%clk 0:01:48.8]} 42... Ke2 {[%clk 0:00:04.8]}
43. Re7+ {[%clk 0:01:48.9]} 43... Kf3 {[%clk 0:00:04.6]} 44. Be4+ {[%clk
0:01:48.5]} 44... Kg4 {[%clk 0:00:04.3]} 45. Bd5 {[%clk 0:01:43.7]} 45... h5
{[%clk 0:00:02.1]} 46. Re3 {[%clk 0:01:42.2]} 46... Kh4 {[%clk 0:00:01.6]} 47.
Rg3 {[%clk 0:01:32.7]} 47... Rxf4 {[%clk 0:00:01.5]} 48. Be6 {[%clk 0:01:27.8]}
48... Rf2+ {[%clk 0:00:01.2]} 49. Kxa3 {[%clk 0:01:27.4]} 49... Rxh2 {[%clk
0:00:01.5]} 50. Rd3 {[%clk 0:01:18.5]} 50... Rh1 {[%clk 0:00:01]} 51. Bd2 {[%clk
0:01:17.8]} 1-0

[Event "Early-Titled-Tuesday-Blitz-January-30-2024"]
[Site "Chess.com"]
[Date "2024.01.30"]
[Round "7"]
[White "Alimpic"]
[Black "FLYD"]
[Result "1-0"]
[WhiteElo "2513"]
[BlackElo "2050"]
[TimeControl "180+1"]
[EndTime "9:18:38 PST"]
[Termination "Alimpic won by resignation"]

1. d4 {[%clk 0:03:00.9]} 1... d5 {[%clk 0:03:00]} 2. c4 {[%clk 0:03:00.9]} 2...
e6 {[%clk 0:03:00.4]} 3. Nc3 {[%clk 0:03:01.3]} 3... Nf6 {[%clk 0:03:00.7]} 4.
Bg5 {[%clk 0:03:01.3]} 4... dxc4 {[%clk 0:03:00.9]} 5. e3 {[%clk 0:02:54.9]}
5... Be7 {[%clk 0:03:00.6]} 6. Bxc4 {[%clk 0:02:54.2]} 6... a6 {[%clk
0:03:01.4]} 7. Nf3 {[%clk 0:02:46.7]} 7... b5 {[%clk 0:03:00.1]} 8. Bb3 {[%clk
0:02:44.6]} 8... O-O {[%clk 0:03:00.3]} 9. O-O {[%clk 0:02:42.6]} 9... Bb7
{[%clk 0:03:00.4]} 10. Qe2 {[%clk 0:02:40.8]} 10... Nbd7 {[%clk 0:02:55.6]} 11.
Rfd1 {[%clk 0:02:30.4]} 11... Nb6 {[%clk 0:02:42.9]} 12. a3 {[%clk 0:02:21.3]}
12... Nfd5 {[%clk 0:02:32.3]} 13. Bxe7 {[%clk 0:02:15.7]} 13... Qxe7 {[%clk
0:02:31.2]} 14. e4 {[%clk 0:02:12.8]} 14... Nxc3 {[%clk 0:02:27.4]} 15. bxc3
{[%clk 0:02:13.7]} 15... c5 {[%clk 0:02:27.5]} 16. a4 {[%clk 0:01:38.4]} 16...
c4 {[%clk 0:02:14]} 17. Bc2 {[%clk 0:01:35.8]} 17... Nd7 {[%clk 0:02:08]} 18. h4
{[%clk 0:01:23.7]} 18... e5 {[%clk 0:02:05.5]} 19. d5 {[%clk 0:01:22.3]} 19...
Qd6 {[%clk 0:01:56.2]} 20. Rab1 {[%clk 0:01:19.5]} 20... Qc5 {[%clk 0:01:37.9]}
21. h5 {[%clk 0:01:07.1]} 21... Rfe8 {[%clk 0:01:28.4]} 22. h6 {[%clk
0:01:03.4]} 22... g6 {[%clk 0:01:24.8]} 23. Ng5 {[%clk 0:00:55.4]} 23... f6
{[%clk 0:00:31.2]} 24. Ne6 {[%clk 0:00:49]} 24... Qd6 {[%clk 0:00:30.9]} 25.
axb5 {[%clk 0:00:47.5]} 25... axb5 {[%clk 0:00:29.3]} 26. Rxb5 {[%clk
0:00:48.4]} 26... Ba6 {[%clk 0:00:21.5]} 27. Ra5 {[%clk 0:00:45.3]} 27... Qb6
{[%clk 0:00:19.8]} 28. Rda1 {[%clk 0:00:42.5]} 28... Bb7 {[%clk 0:00:16.5]} 29.
Rxa8 {[%clk 0:00:36.8]} 29... Rxa8 {[%clk 0:00:17.4]} 30. Rxa8+ {[%clk
0:00:36.7]} 30... Bxa8 {[%clk 0:00:18.3]} 31. Qxc4 {[%clk 0:00:36.6]} 31... Kf7
{[%clk 0:00:11.3]} 32. Qc8 {[%clk 0:00:28.1]} 1-0